Cogmind - Beta 16.1 @@@ ROGUE MODE // 2026.04.21 @ 13:28:23 Player: Rocket Result: Destroyed by Y-54 Guardian with Gatling Laser Performance ------------- Evolutions (3) 1500 Regions Visited (9) 1800 Robots Destroyed (235) 1175 Value Destroyed (9842) 9842 Prototype IDs (5) 100 Alien Tech Used (0) 0 Bonus (4520) 4520 TOTAL SCORE: 18937 Bonus ------- High Alert Combat Kills 3573 Follower Combat Kills 715 Entered Garrisons 400 Friendly Fire -168 Cogmind --------- Core Integrity 0/700 Matter 160/300 Energy 290/290 System Corruption 11% Temperature Cool (6) Movement Rolling (130) Ox2 Location -7/Factory Parts ------- > --- POWER (1) -------- Improved Deuterium Engine > --- PROPULSION (4) --- Armored Huge Wheel > --- UTILITY (5) ------ High-capacity Storage Unit Improved Terrain Scanner Advanced Terrain Scan Processor Reaction Control System > --- WEAPON (3) ------- Flak Gun Flak Gun Flak Gun > --- INVENTORY (20) --- Improved Deuterium Engine Carbon-fiber Leg Carbon-fiber Leg Carbon-fiber Leg Titanium Leg Improved Titanium Leg Myomer Leg Improved Heat Sink Large Storage Unit Large Battery (200) Improved Signal Interpreter Launcher Guidance Computer Reaction Control System Plasma Cannon Heavy Flak Cannon Heavy Mass Driver Plasma Cutter Peak State ------------ > --- POWER ------------ Improved Deuterium Engine > --- PROPULSION ------- Improved Titanium Leg Flexi-carbon Leg Flexi-carbon Leg Myomer Leg > --- UTILITY ---------- High-capacity Storage Unit Improved Terrain Scanner Improved Terrain Scan Processor Advanced Targeting Computer Reaction Control System > --- WEAPON ----------- Heavy Flak Cannon Heavy Mass Driver > --- INVENTORY -------- Light Nuclear Core Carbon-fiber Leg Titanium Leg Armored Huge Wheel Improved Heat Sink Large Storage Unit Large Battery Reaction Control System Reaction Control System High-powered Shotgun Flak Gun Flak Gun Flak Gun Heavy Flak Cannon Heavy Mass Driver Plasma Cutter [Rating: 61] Favorites ----------- Power Light Nuclear Core Engine Improved Deuterium Engine Power Core Light Nuclear Core Propulsion Carbon-fiber Leg Treads Improved Treads Leg Carbon-fiber Leg Wheel Armored Huge Wheel Utility Improved Heat Sink Device Improved Heat Sink Storage Large Storage Unit Processor Advanced Targeting Computer Hackware Hacking Suite Protection Core Shielding Weapon Gatling Laser Energy Gun Gatling Laser Energy Cannon Plasma Cannon Ballistic Gun Assault Rifle Ballistic Cannon Heavy Mass Driver Launcher Improved Grenade Launcher Special Weapon Plasma Cutter Impact Weapon Heavy Mace Build | -11 -10 -10 -9 -8 -8 -8 -7 -7 -7 ------- Run | Yrd Mat Min Mat Mat Gar Sto Fac Gar Fac Slots Evolved 6 | . . . 2 2 . . 2 . . Power . | . . . . . . . . . . Propulsion 2 | . . . 1 . . . 1 . . Utility 3 | . . . 1 1 . . 1 . . Weapon 1 | . . . . 1 . . . . . Parts Attached 155 | 6 9 2 11 23 27 20 14 24 19 Power 17 | 1 . 1 2 2 7 1 2 . 1 Engine 9 | 1 . 1 2 1 1 1 1 . 1 Core 8 | . . . . 1 6 . 1 . . Reactor . | . . . . . . . . . . Propulsion 36 | 2 2 . 1 4 7 4 2 11 3 Treads 8 | 2 2 . 1 . . 3 . . . Leg 26 | . . . . 4 7 1 1 11 2 Wheel 2 | . . . . . . . 1 . 1 Hover . | . . . . . . . . . . Flight . | . . . . . . . . . . Utility 42 | 1 3 1 2 7 3 5 5 5 10 Device 22 | . 2 . 1 3 2 2 3 4 5 Storage 5 | 1 1 . . 1 . 1 . . 1 Processor 7 | . . 1 . 1 . 1 . 1 3 Hackware 2 | . . . . . . . 2 . . Protection 6 | . . . 1 2 1 1 . . 1 Artifact . | . . . . . . . . . . Weapon 60 | 2 4 . 6 10 10 10 5 8 5 Energy Gun 31 | 2 2 . 4 3 6 6 5 2 1 Energy Cannon 2 | . . . . . . 1 . . 1 Ballistic Gun 13 | . 1 . . 4 1 . . 4 3 Ballistic Cannon 4 | . . . . . 1 1 . 2 . Launcher 7 | . . . 2 2 2 1 . . . Special Weapon 1 | . . . . . . 1 . . . Impact Weapon 2 | . 1 . . 1 . . . . . Slashing Weapon . | . . . . . . . . . . Piercing Weapon . | . . . . . . . . . . Special Melee Weapon . | . . . . . . . . . . Unidentified Prototypes 4 | . 1 . . . . 2 1 . . Parts Lost 40 | . . . 3 5 8 2 . 13 9 Power 4 | . . . . 2 . . . 1 1 Propulsion 13 | . . . 2 . 4 . . 4 3 Utility 14 | . . . 1 2 1 2 . 4 4 Weapon 9 | . . . . 1 3 . . 4 1 Highest Loss Streak 9 | . . . 2 2 3 1 . 9 3 To Critical Strikes . | . . . . . . . . . . Average Backups 11 | 1 10 14 14 14 9 14 17 5 16 Power 1 | . 1 1 1 . . 1 1 1 1 Propulsion 2 | . 4 5 2 2 . 2 3 . 3 Utility 3 | . 1 3 3 4 4 5 5 . 6 Weapon 3 | . 2 3 5 4 2 4 5 2 4 Tool/Special . | . . . . . . . . . . Unused Backups 47 | 2 2 1 6 5 5 8 3 2 13 Power 5 | . . . 1 . . . 1 . 3 Propulsion 12 | 2 1 1 1 1 . 4 . . 2 Utility 14 | . . . . 2 2 4 . . 6 Weapon 14 | . 1 . 3 2 3 . 1 2 2 Tool/Special 2 | . . . 1 . . . 1 . . Average Slot Usage (%) 93 | . 95 100 97 97 91 90 92 91 88 Engine 5 | . 14 14 11 6 1 4 3 1 6 Core 3 | . . . . 2 7 4 3 5 . Treads 9 | . 27 28 31 1 . 23 17 . . Leg 16 | . . . . 25 25 3 . 28 24 Device 12 | . 10 14 10 11 4 4 8 23 14 Storage 6 | . 14 14 11 9 4 9 7 . 7 Processor 6 | . . . . 4 9 4 7 8 14 Protection 6 | . . . 10 9 13 9 7 1 . Energy Gun 15 | . 19 28 21 11 17 21 17 10 1 Ballistic Gun 2 | . 8 . . 9 3 . . . 2 Ballistic Cannon 3 | . . . . . 4 . . 6 9 Launcher 1 | . . . . 5 . . 5 . . Peak Build Rating 61 | 6 15 15 21 33 42 46 49 60 61 Average Rating 35 | 4 12 15 18 29 33 41 44 44 57 On Entrance 27 | . 6 15 15 21 32 40 36 46 60 Avg Prop Armor Cover (%) 13 | . . . . . . . 13 14 . Naked Turns . | . . . . . . . . . . Heaviest Build 80 | 14 32 32 36 41 56 57 74 72 80 Greatest Support 85 | 40 46 46 69 63 45 60 60 77 85 Greatest Overweight (x) 2 | . 1 . 1 2 1 2 2 2 2 Average Overweight (x) . | . . . . . . . 1 . . Largest Inventory Capacity 20 | 8 15 15 15 15 15 20 20 20 20 Average Capacity 12 | 5 12 15 15 15 9 15 18 6 18 Most Carried 20 | 4 15 15 15 15 15 15 20 19 20 Average Carried 11 | 1 10 14 14 14 9 14 17 5 17 Final Capacity 20 | 8 15 15 15 15 15 15 20 15 20 Final Carried 19 | 4 15 15 15 15 15 15 19 14 18 Class Distribution -------------------- 28% | Gunner 25% | Mutant 15% | Tank 12% | Scavenger-Gunner 6% | Skirmisher 6% | Scavenger-Tank 3% | Scavenger-Mutant Dominant Class ---------------- Mutant | -10/Materials Mutant | -10/Mines Mutant | -9/Materials Gunner | -8/Materials Gunner | -8/Garrison Gunner | -8/Storage Gunner | -7/Factory Scavenger-Gunner | -7/Garrison Skirmisher | -7/Factory Resources | -11 -10 -10 -9 -8 -8 -8 -7 -7 -7 ----------- Run | Yrd Mat Min Mat Mat Gar Sto Fac Gar Fac Matter Collected 5570 | 260 151 100 207 654 1262 358 119 1170 1289 Remotely 949 | . . . . . . 30 . 113 806 Salvage Created 7746 | . 377 313 418 1234 1320 1265 295 1086 1438 Parts 401 | . 27 17 19 70 69 71 10 43 75 Haulers Intercepted 4 | . 1 . . 2 . . . . 1 Recyclers Shooed 5 | . 1 . . 3 . . . . 1 Parts Field Recycled . | . . . . . . . . . . Retrieved Matter . | . . . . . . . . . . Parts Self-Destructed . | . . . . . . . . . . Prevented . | . . . . . . . . . . Parts Restored . | . . . . . . . . . . Kills | -11 -10 -10 -9 -8 -8 -8 -7 -7 -7 ------- Run | Yrd Mat Min Mat Mat Gar Sto Fac Gar Fac Combat Hostiles Destroyed 184 | . 9 3 9 32 34 20 13 34 30 Guns 117 | . 9 3 5 18 26 15 4 25 12 Cannons 29 | . . . . . 3 2 . 6 18 AOE 37 | . . . 4 14 5 3 9 2 . Classes Destroyed 16 | . 5 3 1 3 2 1 . 1 . Worker 13 | . . 1 . 6 . 3 . . 3 Builder 17 | . 1 . 2 5 . 2 . . 7 Tunneler 4 | . . 3 1 . . . . . . Hauler 4 | . 1 . . 2 . . . . 1 Recycler 8 | . . 2 1 2 . 1 . . 2 Mechanic 2 | . . . . . . 1 . . 1 Watcher 1 | . 1 . . . . . . . . Swarmer 52 | . 3 3 . 9 7 2 8 13 7 Cutter 3 | . . . . . 3 . . . . Grunt 77 | . 6 . 8 15 15 4 4 14 11 Brawler 7 | . . . . 1 . 4 . . 2 Duelist 5 | . . . . 1 . 2 . . 2 Sentry 27 | . . . 2 4 4 8 1 3 5 Demolisher 1 | . . . . . . . . 1 . Hunter 3 | . . . . 2 1 . . . . Programmer 10 | . . . . . 4 . . 3 3 Guerrilla 1 | . . . . . . 1 . . . Best Kill Streak 17 | . 4 3 5 9 7 6 6 6 17 Combat Bots Only 10 | . 3 3 3 7 7 4 6 6 10 Max Kills in Single Turn 4 | . 1 1 3 4 3 2 4 2 2 Gunslinging 1 | . . . . . 1 . . 1 . Exploded 4 | . . . 2 3 3 1 4 1 . Melee . | . . . . . . . . . . Uniques/NPCs Destroyed . | . . . . . . . . . . Combat | -11 -10 -10 -9 -8 -8 -8 -7 -7 -7 -------- Run | Yrd Mat Min Mat Mat Gar Sto Fac Gar Fac Hostile Shots Fired 972 | . 33 6 41 132 146 72 39 217 286 Missed 341 | . 8 2 15 46 36 23 9 87 115 Hits 631 | . 25 4 26 86 110 49 30 130 171 Melee 15 | . . . . . 2 4 . . 9 Projectile 616 | . 25 4 26 86 108 45 30 130 162 AOE 5 | . . . . . . . . 5 . Critical Strikes 17 | . 1 . . 1 1 6 2 3 3 Part Disruptions 1 | . . . . . 1 . . . . Damage Taken 8402 | . 295 53 403 1189 1556 889 292 1616 2109 Core 1186 | . 56 . 22 152 185 65 . 333 373 Absorbed by Shields 321 | . . . . 57 . . . 264 . Redirected to Shielding 50 | . . . 4 13 33 . . . . Core Remaining (%) 74 | 100 . 77 94 . . 26 . . . Volleys Fired 541 | . 33 12 40 78 116 41 14 90 117 Largest 3 | . 2 2 2 3 3 3 3 3 3 Hottest 240 | . 112 112 126 146 161 150 240 240 145 Shots Fired 979 | . 66 24 68 143 217 105 24 163 169 Gun 748 | . 66 24 62 125 167 89 19 109 87 Cannon 189 | . . . . . 44 15 . 48 82 Launcher 41 | . . . 6 18 6 . 5 6 . Special 1 | . . . . . . 1 . . . Kinetic 375 | . 30 . . 53 106 7 . 48 131 Thermal 424 | . 36 24 62 72 79 9 19 109 14 Explosive 41 | . . . 6 18 6 . 5 6 . Electromagnetic 139 | . . . . . 26 89 . . 24 Robot Hit Streak 30 | . 7 5 7 15 20 28 30 18 22 Robot Miss Streak 7 | . 4 2 5 4 6 5 2 6 7 Penetration Max 1 | . . . . . 1 . . . 1 Secondary Targets 29 | . 4 . . 3 9 2 . 7 4 Max Gunslinging Chain 1 | . 1 . . 1 1 1 . 1 1 Shots Hit Robots 619 | . 38 13 38 102 110 77 16 107 118 Core Hits 478 | . 18 9 19 88 58 54 25 108 99 Critical Kills . | . . . . . . . . . . Critical Parts Destroyed 1 | . . . . . 1 . . . . Critical Strikes 18 | . 1 1 3 1 5 . . 1 6 Burn 9 | . 1 1 3 1 3 . . . . Destroy 1 | . . . . . 1 . . . . Blast 8 | . . . . . 1 . . 1 6 Melee Attacks 11 | . 1 . . 2 . 1 . 7 . Impact 11 | . 1 . . 2 . 1 . 7 . Slashing . | . . . . . . . . . . Piercing . | . . . . . . . . . . Sneak Attacks . | . . . . . . . . . . Combat Hostiles . | . . . . . . . . . . Follow-up Attacks . | . . . . . . . . . . Damage Inflicted 19061 | . 630 218 1300 3366 2403 2239 1139 3235 4531 Guns 9441 | . 609 218 657 1558 1664 1260 364 1853 1258 Cannons 4641 | . . . . . 272 242 . 1018 3109 Explosions 4848 | . . . 643 1799 467 723 775 364 77 Melee . | . . . . . . . . . . Ramming 119 | . 21 . . 9 . 2 . . 87 Kinetic 6792 | . 224 . . 664 942 176 . 1018 3768 Thermal 6653 | . 385 218 801 894 940 641 606 1853 315 Explosive 3602 | . . . 499 1799 247 160 533 364 . Electromagnetic 1895 | . . . . . 274 1260 . . 361 Impact . | . . . . . . . . . . Slashing . | . . . . . . . . . . Piercing . | . . . . . . . . . . Highest Corruption 11 | . . . . . 2 4 . 5 11 Average Corruption 4 | . . . . . 1 2 . 4 6 Corruption Purged . | . . . . . . . . . . Corruption Blocked . | . . . . . . . . . . Effects 127 | . . . . . 23 27 . 39 38 Message Errors 34 | . . . . . 5 6 . 15 8 Matter Fused 33 | . . . . . 4 7 . 8 14 Heat Flow Errors 10 | . . . . . 4 2 . 1 3 Energy Discharges 14 | . . . . . 2 1 . 9 2 Parts Fused 1 | . . . . . . 1 . . . Data Loss (minor) 21 | . . . . . 3 9 . 3 6 Data Loss (major) 4 | . . . . . 2 . . 1 1 Misfires 2 | . . . . . 1 . . 1 . Alerts 4 | . . . . . 2 . . 1 1 Weapon Failures 4 | . . . . . . 1 . . 3 Overload Shots . | . . . . . . . . . . Overflow Damage 625 | . . . 101 23 11 46 86 22 336 Projectiles 351 | . . . . . . . . 19 332 Explosions 272 | . . . 101 23 11 46 86 3 2 Melee 2 | . . . . . . . . . 2 Knockbacks 21 | . 1 . . . 3 1 . 9 7 Impact 3 | . 1 . . . . . . . 2 Kinetic 17 | . . . . . 3 1 . 9 4 Secondary 1 | . . . . . . . . . 1 Self-Inflicted Damage 352 | . . . 23 102 57 94 . 68 8 Shots 12 | . . . 1 4 2 2 . 2 1 Rammed 6 | . 5 . . . . 1 . . . Targets Rammed 10 | . 5 . . 1 . 1 . . 3 Kicked 4 | . . . . 1 . . . . 3 Crushed . | . . . . . . . . . . Highest Temperature 407 | . 189 42 311 153 324 407 309 204 264 Average Temperature 72 | . 59 15 60 34 100 90 134 59 57 Received Heat Transfer 2437 | . 150 9 183 351 441 333 138 352 480 Effects 7 | . . . . . 2 1 4 . . Energy Bleed 4 | . . . . . 1 1 2 . . Interference 2 | . . . . . . . 2 . . Matter Decay 1 | . . . . . 1 . . . . Siege Activations . | . . . . . . . . . . Martial Activations . | . . . . . . . . . . Shielding Activations . | . . . . . . . . . . Robots Disrupted . | . . . . . . . . . . Combat Hostiles . | . . . . . . . . . . Robots Corrupted 1 | . . . . . . . . . 1 Combat Hostiles . | . . . . . . . . . . Parts Fried 10 | . . . . . 1 5 . . 4 Impact Corruptions 1 | . . . . . . . . . 1 Robots Melted 1 | . . . . . . . . 1 . Combat Hostiles 1 | . . . . . . . . 1 . Parts Melted 36 | . 1 5 4 2 6 . 7 10 1 Heat Transferred 13505 | . 925 555 1765 2072 2161 637 975 3865 550 Parts Sabotaged . | . . . . . . . . . . Parts Stolen . | . . . . . . . . . . Parts Stripped . | . . . . . . . . . . Power Chain Reactions 11 | . . . . . 3 7 . . 1 Alert | -11 -10 -10 -9 -8 -8 -8 -7 -7 -7 ------- Run | Yrd Mat Min Mat Mat Gar Sto Fac Gar Fac Maximum Alert Level 5 | . . . 1 2 5 4 3 5 5 Low Security (%) 25 | 100 100 100 97 41 . . . . . Level 1 2 | . . . 2 31 . . . . . Level 2 9 | . . . . 27 10 . 67 6 . Level 3 14 | . . . . . 27 . 32 30 . Level 4 34 | . . . . . 40 100 . 26 97 Level 5 13 | . . . . . 21 . . 37 2 High Security . | . . . . . . . . . . Max Security . | . . . . . . . . . . Peak Influence 2536 | . 82 86 206 635 2536 1599 811 2444 1643 Initial 1283 | . . . . 59 408 1236 723 556 1283 Average 925 | . 29 28 62 275 1272 1371 685 1441 1280 Influence Increases 8657 | . 260 184 514 1066 2288 921 382 2078 964 Destroy 0b10 Robot/C 4200 | . 180 100 240 640 840 540 260 780 620 Destroy 0b10 Robot/NC 265 | . 15 30 20 75 5 40 . 5 75 Destroy Leader 692 | . 34 20 60 154 40 142 50 40 152 Allied During Kill 159 | . . 19 17 . 68 24 . 29 2 Successful Hack 128 | . 16 . 22 2 14 17 13 44 . Disable Machine 375 | . 15 . 90 105 30 75 30 15 15 Anti-Garrison Action 2200 | . . . . . 1150 . . 1050 . Destroy Structure 488 | . . . 65 90 111 53 29 100 40 Lose Combat Pursuer 150 | . . 15 . . 30 30 . 15 60 Influence Decreases 7018 | . 260 184 372 579 381 1866 1178 429 1769 Entered New Map 3872 | . . . . 83 221 1300 868 239 1161 Time Decay 2506 | . 260 184 322 446 . 486 310 . 498 Lost Part 400 | . . . 30 50 80 20 . 130 90 Lost Ally 240 | . . . 20 . 80 60 . 60 20 Squads Dispatched 26 | . . . 3 8 . 3 2 . 10 Investigation 2 | . . . 1 1 . . . . . Extermination 3 | . . . . . . . . . 3 Reinforcement 10 | . . . 2 3 . . 2 . 3 Assault 6 | . . . . . . 3 . . 3 Garrison 5 | . . . . 4 . . . . 1 Intercept . | . . . . . . . . . . Searches Triggered . | . . . . . . . . . . Construction Impeded 2 | . . . . 1 . . . . 1 Haulers Reinforced . | . . . . . . . . . . Active Scanning Responses . | . . . . . . . . . . Cargo Convoy Interrupts . | . . . . . . . . . . Stealth | -11 -10 -10 -9 -8 -8 -8 -7 -7 -7 --------- Run | Yrd Mat Min Mat Mat Gar Sto Fac Gar Fac Distress Signals 13 | . . . 4 2 . 4 . . 3 Communications Jammed . | . . . . . . . . . . Distress Signals . | . . . . . . . . . . Times Spotted 248 | . 12 3 14 43 40 35 14 40 47 Peak Tracking Total 11 | . 3 2 3 9 7 5 6 6 11 Tactical Retreats 8 | . . 1 . . 2 2 . 1 2 Traps | -11 -10 -10 -9 -8 -8 -8 -7 -7 -7 ------- Run | Yrd Mat Min Mat Mat Gar Sto Fac Gar Fac Traps Triggered 10 | . 3 . . 1 5 1 . . . Indirectly . | . . . . . . . . . . Trap Hack Attempts . | . . . . . . . . . . Triggered . | . . . . . . . . . . Disarmed . | . . . . . . . . . . Reprogrammed . | . . . . . . . . . . Reused . | . . . . . . . . . . Traps Extracted . | . . . . . . . . . . Installed . | . . . . . . . . . . Triggered . | . . . . . . . . . . Machines | -11 -10 -10 -9 -8 -8 -8 -7 -7 -7 ---------- Run | Yrd Mat Min Mat Mat Gar Sto Fac Gar Fac Machines Disabled 38 | . 1 . 6 7 11 5 2 5 1 Max in Single Turn 2 | . 1 . 2 1 2 1 2 1 1 Garrison Relay 10 | . . . . . 6 . . 4 . Phase Generator 1 | . . . . . 1 . . . . Machines Repaired . | . . . . . . . . . . Machines Dismantled 2 | . . . . . . 2 . . . Machines Sabotaged . | . . . . . . . . . . Overloaded Fab Kills . | . . . . . . . . . . Hacking | -11 -10 -10 -9 -8 -8 -8 -7 -7 -7 --------- Run | Yrd Mat Min Mat Mat Gar Sto Fac Gar Fac Machines Accessed 30 | . 5 . 2 5 2 7 3 4 2 Terminals 26 | . 5 . 2 3 2 7 2 4 1 Fabricators . | . . . . . . . . . . Repair Stations . | . . . . . . . . . . Recycling Units . | . . . . . . . . . . Scanalyzers 2 | . . . . 1 . . . . 1 Garrison Access 2 | . . . . 1 . . 1 . . Total Hacks 68 | . 11 . 4 15 2 13 13 7 3 Successful 29 | . 4 . 2 5 2 6 5 3 2 Failed 38 | . 7 . 2 9 . 7 8 4 1 Catastrophic 8 | . 1 . 1 2 . . 2 1 1 Database Lockouts 1 | . . . . 1 . . . . . Manual 44 | . 10 . 4 8 . 9 12 . 1 Terminals 58 | . 11 . 4 8 2 13 12 7 1 Fabricators . | . . . . . . . . . . Repair Stations . | . . . . . . . . . . Recycling Units . | . . . . . . . . . . Scanalyzers 6 | . . . . 4 . . . . 2 Garrison Access 4 | . . . . 3 . . 1 . . Terminal Hacks 17 | . 3 . 2 1 2 4 2 3 . Record 1 | . 1 . . . . . . . . Open Door 3 | . . . . . 1 2 . . . Level Access Points 1 | . . . . . . 1 . . . Branch Access Points 5 | . 1 . 1 1 . 1 1 . . Emergency Access Points 2 | . . . . . 1 . . 1 . Registered Components 1 | . 1 . . . . . . . . Zone Layout 2 | . . . 1 . . . 1 . . Patrol Navigation 1 | . . . . . . . . 1 . Security Stations 1 | . . . . . . . . 1 . Fabricator Hacks . | . . . . . . . . . . Repair Station Hacks . | . . . . . . . . . . Recycling Unit Hacks . | . . . . . . . . . . Scanalyzer 4 | . . . . 2 . . . . 2 Retrieve Study 4 | . . . . 2 . . . . 2 Garrison Access Hacks 2 | . . . . 1 . . 1 . . Unlock Access 2 | . . . . 1 . . 1 . . Unauthorized Hacks 6 | . 1 . . 1 . 2 2 . . Terminals 6 | . 1 . . 1 . 2 2 . . Assimilate 1 | . . . . . . . 1 . . Botnet 5 | . 1 . . 1 . 2 1 . . Fabricators . | . . . . . . . . . . Repair Stations . | . . . . . . . . . . Recycling Units . | . . . . . . . . . . Scanalyzers . | . . . . . . . . . . Garrison Access . | . . . . . . . . . . Data Cores Recovered . | . . . . . . . . . . Used . | . . . . . . . . . . Hacking Detections 22 | . 4 . 1 4 1 4 3 3 2 Full Trace Events 1 | . . . . . . . . 1 . Feedback Events . | . . . . . . . . . . Feedback Blocked . | . . . . . . . . . . Robot Schematics Acquired . | . . . . . . . . . . Robots Built . | . . . . . . . . . . Authchips . | . . . . . . . . . . Time . | . . . . . . . . . . Total Robot Build Rating . | . . . . . . . . . . Part Schematics Acquired . | . . . . . . . . . . Parts Built . | . . . . . . . . . . Authchips . | . . . . . . . . . . Time . | . . . . . . . . . . Total Part Build Rating . | . . . . . . . . . . Part Studies Acquired 3 | . . . . 2 . . . . 1 Parts Repaired . | . . . . . . . . . . Time . | . . . . . . . . . . Parts Recycled . | . . . . . . . . . . Recycled Matter . | . . . . . . . . . . Retrieved Matter . | . . . . . . . . . . Retrieved Components . | . . . . . . . . . . Parts Scanalyzed . | . . . . . . . . . . Part Schematics Acquired . | . . . . . . . . . . Parts Damaged . | . . . . . . . . . . Bothacking | -11 -10 -10 -9 -8 -8 -8 -7 -7 -7 ------------ Run | Yrd Mat Min Mat Mat Gar Sto Fac Gar Fac Used RIF Installer . | . . . . . . . . . . Robots Hacked . | . . . . . . . . . . Non-combat . | . . . . . . . . . . Combat . | . . . . . . . . . . Robot Hacks Applied . | . . . . . . . . . . Relay Couplers Released 46 | . . . . . 30 . . 16 . Machine Destruction 42 | . . . . . 26 . . 16 . Programmers 4 | . . . . . 4 . . . . Fabnet Peak Effective % . | . . . . . . . . . . Robots Rewired 13 | . . . . . 9 . . 4 . Allies Hacked . | . . . . . . . . . . Hacks Repelled . | . . . . . . . . . . Allies | -11 -10 -10 -9 -8 -8 -8 -7 -7 -7 -------- Run | Yrd Mat Min Mat Mat Gar Sto Fac Gar Fac Total Allies 18 | . . 3 . . 11 . . 4 . Largest Group 6 | . . 3 3 . 6 4 . 3 1 Highest-Rated Group 124 | . . 40 40 . 124 93 . 81 21 Highest-Rated Ally 39 | . . 16 16 . 39 39 . 31 21 Initial Warlord ECA Mod 18 | . . . . . . 11 10 10 18 Total Orders . | . . . . . . . . . . Ally Attacks 131 | . . 26 22 . 35 21 . 21 6 Total Damage 1876 | . . 192 157 . 538 493 . 342 154 Kills 28 | . . 2 4 . 8 8 . 5 1 Allies Corrupted . | . . . . . . . . . . Allies Melted . | . . . . . . . . . . Intel | -11 -10 -10 -9 -8 -8 -8 -7 -7 -7 ------- Run | Yrd Mat Min Mat Mat Gar Sto Fac Gar Fac Active Infowar (turns) 1399 | . 565 . . . . . . . 834 Terrain 1399 | . 565 . . . . . . . 834 Robot Analysis Total . | . . . . . . . . . . Derelict Logs Recovered 1 | . . 1 . . . . . . . Drone Launches . | . . . . . . . . . . Drone Recoveries . | . . . . . . . . . . Exploration | -11 -10 -10 -9 -8 -8 -8 -7 -7 -7 ------------- Run | Yrd Mat Min Mat Mat Gar Sto Fac Gar Fac Turns Passed 13141 | 196 878 543 1376 1100 2860 1275 699 2886 1328 Spaces Moved 7584 | 125 453 311 742 693 1690 577 434 1866 693 Core 17 | 17 . . . . . . . . . Treads 2247 | 108 453 311 742 28 . 505 100 . . Legs 4857 | . . . . 665 1690 72 . 1852 578 Wheels 463 | . . . . . . . 334 14 115 Hover . | . . . . . . . . . . Flight . | . . . . . . . . . . Fastest Speed 50 | 50 160 160 160 75 75 170 115 122 115 Average Speed 137 | 145 160 160 163 100 137 172 137 126 124 Slowest Speed 330 | 160 240 160 240 270 190 330 250 200 193 Overloaded Moves . | . . . . . . . . . . Propulsion Burnouts . | . . . . . . . . . . Robots Hopped . | . . . . . . . . . . Potential Cave-ins . | . . . . . . . . . . Cave-ins Triggered . | . . . . . . . . . . Exploration Rate (%) 51 | 5 60 58 63 55 90 57 10 95 23 Regions Visited 9 Branch Regions 2 Pre-discovered Areas . | . . . . . . . . . . Known Exits Taken 4 | . 1 . . 1 . 1 1 . . Unknown Exits Taken 3 | 1 . 1 1 . . . . . . Scrap Searched . | . . . . . . . . . . Spaces Dug 20 | . . . . 2 2 . 5 . 11 Terrain Destroyed 467 | . . . 59 123 106 47 40 51 41 Melee 2 | . . . . 2 . . . . . Projectile 49 | . . . . . 2 5 . 3 39 AOE 415 | . . . 59 121 103 42 40 48 2 Terrain Rammed . | . . . . . . . . . . Walls Destroyed . | . . . . . . . . . . Machines Disabled . | . . . . . . . . . . Actions | -11 -10 -10 -9 -8 -8 -8 -7 -7 -7 --------- Run | Yrd Mat Min Mat Mat Gar Sto Fac Gar Fac Total 9284 | 138 529 333 845 964 2057 748 508 2192 970 Wait 385 | . 5 4 21 97 66 36 9 66 81 Move 7573 | 124 452 310 741 693 1685 576 434 1865 693 Hop . | . . . . . . . . . . Pick Up 153 | 6 11 2 12 21 23 21 14 21 22 Fast Attach 92 | 6 10 . 2 14 12 7 6 25 10 Attach 38 | . . . 4 7 6 3 3 8 7 Detach 8 | . . . . 3 1 . 3 . 1 Swap 117 | . 6 3 11 17 23 16 11 16 14 Drop 183 | 2 6 2 14 31 30 30 14 32 22 Fire 541 | . 33 12 40 78 116 41 14 90 117 Melee 11 | . 1 . . 2 . 1 . 7 . Ram . | . . . . . . . . . . Kick 4 | . . . . 1 . . . . 3 Crush 6 | . 5 . . . . 1 . . . Escape Stasis 16 | . . . . . 16 . . . . Rewire 141 | . . . . . 79 . . 62 . Trap . | . . . . . . . . . . Miscellaneous 16 | . . . . . . 16 . . . Route ------- -11/Scrapyard -10/Materials (discovered 3 exits: *Mat / *Min / *Sub) -10/Mines (discovered 2 exits: *Mat / *Sub) -9/Materials (discovered 4 exits: *Mat x2 / *Min x2) -8/Materials (discovered 3 exits: *Fac / Sto / Gar) -8/Garrison (discovered 3 exits: *Sto x3) -8/Storage (discovered 2 exits: *Fac / Rec) -7/Factory (discovered 3 exits: Low x2 / Gar) -7/Garrison (discovered 3 exits: *Fac x3) -7/Factory History --------- Turn | Location | Event 4 | -11/Scrapyard | Discovered new exit (range 16) 197 | -11/Scrapyard | Entered Materials 330 | -10/Materials | Build established: Mutant 427 | -10/Materials | Discovered new exit (range 5) 561 | -10/Materials | Discovered new exit (range 3) 836 | -10/Materials | Identified exit to Mines 997 | -10/Materials | Derelicts attacked the area 1075 | -10/Materials | Entered Mines 1082 | -10/Mines | Assisted by bots powering up and referring to "LRC-V3" 1328 | -10/Mines | Received a Rocket Launcher from a helpful Derelict 1483 | -10/Mines | Discovered new exit (range 6) 1494 | -10/Mines | Identified exit to Subcaves 1552 | -10/Mines | Discovered new exit (range 9) 1580 | -10/Mines | Learned Materials terminal intel 1618 | -10/Mines | Entered Materials 1618 | -9/Materials | Accompanied by 3 allies 1618 | -9/Materials | Evolved 2 slots: Propulsion x1, Utility x1 1619 | -9/Materials | Loaded intel: 12 terminal locations 1935 | -9/Materials | Met 8R-AWN 1945 | -9/Materials | Discovered new exit (range 16) 2144 | -9/Materials | Identified exit to Mines 2373 | -9/Materials | Discovered new exit (range 10) 2673 | -9/Materials | Discovered new exit (range 15) 2994 | -9/Materials | Entered another Materials area 2994 | -8/Materials | Evolved 2 slots: Utility x1, Weapon x1 3301 | -8/Materials | Build established: Tank 3328 | -8/Materials | Central database locked down 3452 | -8/Materials | Discovered new exit (range 16) 3633 | -8/Materials | Identified exit to Storage 3745 | -8/Materials | Garrison activated, responded to threat 3778 | -8/Materials | Destroyed 7 combat bots 4055 | -8/Materials | Garrison activated, responded to threat 4094 | -8/Materials | Identified exit to Garrison 4094 | -8/Materials | Entered Garrison 4131 | -8/Garrison | Triggered checkpoint 4174 | -8/Garrison | Garrison Relay disabled 4222 | -8/Garrison | Triggered checkpoint 4290 | -8/Garrison | Lost 3 parts (2n1w) 4408 | -8/Garrison | Destroyed 7 combat bots 4422 | -8/Garrison | Triggered checkpoint 4515 | -8/Garrison | Discovered exit to Storage (range 11) 4536 | -8/Garrison | Triggered checkpoint 4564 | -8/Garrison | Triggered checkpoint 4605 | -8/Garrison | Garrison Relay disabled 4729 | -8/Garrison | Core integrity fell below 50% 4751 | -8/Garrison | Build established: Scavenger-Tank 4828 | -8/Garrison | Triggered checkpoint 4846 | -8/Garrison | Garrison Relay disabled 5168 | -8/Garrison | Triggered checkpoint 5207 | -8/Garrison | Lost 4 allies 5242 | -8/Garrison | Triggered checkpoint 5326 | -8/Garrison | Discovered exit to Storage (range 11) 5511 | -8/Garrison | Build established: Tank 5976 | -8/Garrison | Build established: Gunner 6010 | -8/Garrison | Garrison Relay disabled 6145 | -8/Garrison | Attempted to access garrison exit controls, blocked by remote lockdown 6599 | -8/Garrison | Rescued a captive Derelict 6608 | -8/Garrison | Rescued a captive Derelict 6634 | -8/Garrison | Phase Generator disabled 6649 | -8/Garrison | Attempted to access garrison exit controls, blocked by remote lockdown 6686 | -8/Garrison | Garrison Relay disabled 6846 | -8/Garrison | Triggered checkpoint 6858 | -8/Garrison | Triggered checkpoint 6875 | -8/Garrison | Garrison Relay disabled 6903 | -8/Garrison | Discovered exit to Storage (range 10) 6954 | -8/Garrison | Entered Storage 6954 | -8/Storage | Accompanied by 4 allies 7053 | -8/Storage | Lost 3 allies 7354 | -8/Storage | First assault squad dispatched 8031 | -8/Storage | Identified exit to Recycling 8080 | -8/Storage | Identified exit to Factory 8229 | -8/Storage | Entered Factory 8229 | -7/Factory | Evolved 2 slots: Propulsion x1, Utility x1 8587 | -7/Factory | Identified exit to Lower Caves 8928 | -7/Factory | Identified exit to Garrison 8928 | -7/Factory | Entered Garrison 9008 | -7/Garrison | Learned Factory security intel 9040 | -7/Garrison | Triggered checkpoint 9238 | -7/Garrison | Build established: Tank 9342 | -7/Garrison | Triggered checkpoint 9397 | -7/Garrison | Discovered new exit (range 10) 9424 | -7/Garrison | Triggered checkpoint 9733 | -7/Garrison | Build established: Scavenger-Gunner 9873 | -7/Garrison | Garrison Relay disabled 10073 | -7/Garrison | Garrison Relay disabled 10089 | -7/Garrison | Build established: Scavenger-Mutant 10171 | -7/Garrison | Triggered checkpoint 10332 | -7/Garrison | Triggered checkpoint 10362 | -7/Garrison | Discovered new exit (range 8) 10437 | -7/Garrison | Lost 9 parts (3n3u3w) 10834 | -7/Garrison | Build established: Scavenger-Gunner 10947 | -7/Garrison | Garrison Relay disabled 11286 | -7/Garrison | Discovered new exit (range 10) 11300 | -7/Garrison | Triggered checkpoint 11362 | -7/Garrison | Garrison Relay disabled 11686 | -7/Garrison | Build established: Gunner 11814 | -7/Garrison | Entered Factory 11814 | -7/Factory | Accompanied by 1 ally 12135 | -7/Factory | Core integrity fell below 50% 12333 | -7/Factory | Build established: Skirmisher 12614 | -7/Factory | First assault squad dispatched 12763 | -7/Factory | System corruption reached 10% 12790 | -7/Factory | Destroyed 10 combat bots 12798 | -7/Factory | Lost 3 parts (1n2u) 12997 | -7/Factory | Core integrity fell below 20% 13098 | -7/Factory | Garrison activated, responded to threat 13142 | -7/Factory | Destroyed by Y-54 Guardian with Gatling Laser Last Messages --------------- 13104_ G-47 Trooper destroyed. 13107_ R-06 Scavenger collects Lgt. Nuclear Core. 13110_ R-06 Scavenger collects Axe. 13110_ R-06 Scavenger collects Imp. Melee Analysis Suite. 13111_ Discarded Target Analyzer. 13112_ Acquired 42 matter. 13112_ Acquired 38 matter. 13112_ Acquired 29 matter. 13116_ R-06 Scavenger sends out distress signal. 13117_ RCG&D#LOX0QFQ:GIE|YNKU8HTPTI75D8|B0YP0H 13122_ G-50 Soldier destroyed. 13123_ Acquired 26 matter. 13124_ Tractor Beam destroyed. 13126_ K-01 Serf collects debris. 13134_ Arm. Huge Wheel destroyed. 13135_ Y-54 Guardian destroyed. 13136_ K-01 Serf collects debris. 13137_ R-06 Scavenger collects Imp. Heat Sink. Map ----- +----------------------------------------------------+ | ?????????????????????????????????????????????????? | | ?????????????????????????????????????????????????? | | ?????????????????????????????????????????????????? | | ?????????????????????????????????????????????????? | | ???????????????????????????????+?????????????????? | | ?????????????????????????????????????????????????? | | ?????????????????????????# ?? ?? ???????????????? | | ????????????????????????#?? ? ???? ? ???????????? | | ?????????????????????????# ??????????????????????? | | ??????????????????????#??? ?#?#?#??####??????? | | ??????????????????????#??# ?? ? ??????? | | ????????????????????? +? ?????? | | ???????????????????"? # ? ???????? | | ????????????????#?? ?? ? ?????? | | ??????????????????"" ?# ? ?? ? ?????? | | ????????????????? ? ##??####? ###????????? | | ??????????????### """ #######? u######?? ?? | | ?????????????#?## ""? ?######## ###?##????? | | ???????????????## ""? ?#######% ####?#?????? | | ?????????????#?## ? ##?## #? ? ? ??? | | ??????????##?#???############# r # # ???? | | ????????????##?#####?## ######r## # ""? # ??" | | ????????????########### ## kr# # """ ?? "" | | ?????#?????##?#?####?## ##!! [ # # "???# ?"? | | ?????#??#??#?#?##?#?#?# ##! # # #? ?? | | ???????#??#?##?######## @! #? / ""####?? | | ??????????????######??#### # # "??###?? | | ??? ????#??#?####?######## #? ? ? G?#???? | | ??????######################Y#### # "?###### | | ??????# + # ""## | | ??? ??# ######## # ?# | | ??????# """"""" = # # #####??# | | ????? ????""""" # ? # u ##?##??# | | ?????????"""""" # + ####?### | | ???? ?# """"""" # # ######## "" | | ??????# ! !# ? ?####### ######## "" | | ??????# """"""" !!!# ? ?######?#u########??# "" | | ??????# """"""" !!!#?###?######?## ####?#??### "" | | ??????# """"""" ##########??##??##?###?####[ "" | | ??????# """ """ # #####? ????????#?# "" | | ??????# % # """ ####?#??#?##?###?# | | ??????#######+#+#### """ #???##?????#?######### | | ####+###??# = !#??# """ #?#??????##???#####?## | | ?#* #?## #????#?###########?### | | ??"""" = # #??# #????# #?############# | | ??"""" =+ #??# " " #???## ?#???########## | | ?""" # #??# "T" #????# ?#####?#??##### | | ??# #??# """ #????# ?#?#######?#### | | ######+#### #####/############ ##########?#?## | | ???# # ! ####?# | +----------------------------------------------------+ Best States ------------- Heat Dissipation 82 Energy Generation 18 Energy Capacity 300 Matter Stores 300 Matter Capacity 300 Sight Range 16 Terrain Scan Range 16 Terrain Scan Density 210 Armor Coverage 600 Resistance: EM 15 Core Shielding 20 Phase Shifting 10 Evasion (%) 65 Targeting Accuracy 14 Target Analysis 5 Recoil Reduction 3 Offensive Hacking 10 Defensive Hacking 10 Item Schematics ----------------- None Robot Schematics ------------------ None Fabricated ------------ Nothing Repaired ---------- Nothing Studied --------- VSS Leg | -8/Materials | Hacked Pulse Rifle | -8/Materials | Hacked Titanium Leg | -7/Factory | Hacked Alien Tech Used ----------------- None Achievements -------------- None Challenges ------------ None Game ------ Seed AlphaJunkBox Manual? 0 Play Time 02:10:18 Cumulative 155.6 hours Start 2026.04.20 @ 19:18:12 End 2026.04.21 @ 13:28:23 Sessions 4 Manual Loads 0 Difficulty Rogue Special Mode None Game No. 207 Rogue 207 Adventurer 0 Explorer 0 Win Type - Total 2 Types 2/0/0/0/0/0/0/0/0/0 Lore% 40 Gallery% 51 Achievement% 40 Wizard Run 0 Options --------- Layout 1 ASCII 0 Keyboard 0 Movement Mouse Keybinds 0 Fullscreen 2 Font 24/Smallcaps Map View 50x35 Zoom Use 19% Tactical HUD 1 Map Filters NONE Filters NONE Steam 1 RUN: 849587ba-9800-4eb0-94dc-5ef3a68e878c